fUSD/lending_fUSD_20240503
["ID","MTS","AMOUNT","RATE_DAILY","PERIOD"]
[325371176,1714765838350,-1649.983358,0.00013,2]
[325371177,1714765838383,-353.33450113,0.00013,2]
[325371178,1714765838394,-646.28503229,0.00013,2]
[325371192,1714765839992,-646.8996,0.00013,2]
[325371193,1714765840048,-2211.15767486,0.00013,2]
[325371194,1714765840156,-5961526.49250984,0.00013,2]
[325371195,1714765840166,-2000.0,0.00013,2]
[325371196,1714765840175,-200.0,0.00013,2]
[325371197,1714765840185,-2000.0,0.00013,2]
[325371198,1714765840194,-200.0,0.00013,2]
[325371199,1714765840204,-3000.0,0.00013,2]
[325371200,1714765840216,-3000.0,0.00013,2]
[325371201,1714765840226,-898.0,0.00013001,2]
[325371202,1714765840235,-5228.0,0.00013003,2]
[325371203,1714765840244,-4000.0,0.00013003,2]
[325371204,1714765840254,-3000.0,0.0001307,2]
[325371205,1714765840264,-2000.0,0.0001313,2]
[325371206,1714765840273,-200.0,0.0001313,2]
[325371207,1714765840283,-2000.0,0.0001313,2]
[325371208,1714765840293,-200.0,0.0001313,2]
[325371209,1714765840304,-320.64,0.00013151,2]
[325371210,1714765840313,-158.0,0.0001326,2]
[325371212,1714765840323,-2000.0,0.00013261,2]
[325371214,1714765840333,-200.0,0.00013261,2]
[325371216,1714765840342,-2000.0,0.00013261,2]
[325371217,1714765840351,-200.0,0.00013261,2]
[325371218,1714765840361,-3000.0,0.0001338,2]
[325371219,1714765840370,-2000.0,0.00013394,2]
[325371220,1714765840379,-200.0,0.00013394,2]
[325371221,1714765840389,-2000.0,0.00013394,2]
[325371222,1714765840398,-200.0,0.00013394,2]
[325371223,1714765840408,-492.51,0.00013425,2]
[325371224,1714765840417,-357.73,0.00013425,2]
[325371225,1714765840427,-1000.0,0.00013443,2]
[325371226,1714765840436,-155.97,0.00013506,2]
[325371227,1714765840446,-2000.0,0.00013528,2]
[325371228,1714765840455,-200.0,0.00013528,2]
[325371229,1714765840465,-2000.0,0.00013528,2]
[325371230,1714765840475,-200.0,0.00013528,2]
[325371231,1714765840485,-3000.0,0.0001369,2]
[325371232,1714765840494,-200.0,0.00013699,2]
[325371233,1714765840504,-200.0,0.00013699,2]
[325371234,1714765840514,-200.0,0.00013699,2]
[325371235,1714765840524,-500.0,0.00013699,2]
[325371236,1714765840535,-12278.56,0.00013699,2]
[325371237,1714765840543,-200.0,0.00013699,2]
[325371238,1714765840553,-2751.0,0.00013699,2]
[325371239,1714765840562,-158.0,0.0001381,2]
[325371240,1714765840572,-442.833279,0.00013973,2]
[325371241,1714765840582,-1100.0,0.00014,3]
[325371242,1714765840591,-3000.0,0.00014,2]
[325371243,1714765840601,-150.41,0.00014,2]
[325371244,1714765840610,-150.41,0.00014,2]
[325371245,1714765840619,-150.41,0.00014,2]
[325371246,1714765840629,-150.41,0.00014,2]
[325371247,1714765840639,-150.41,0.00014,2]
[325371248,1714765840649,-150.41,0.00014,2]
[325371249,1714765840660,-150.41,0.00014,2]
[325371250,1714765840669,-150.41,0.00014,2]
[325371251,1714765840679,-150.41,0.00014,2]
[325371252,1714765840688,-150.41,0.00014,2]
[325371253,1714765840698,-150.41,0.00014,2]
[325371254,1714765840708,-150.41,0.00014,2]
[325371255,1714765840717,-150.41,0.00014,2]
[325371256,1714765840728,-150.41,0.00014,2]
[325371257,1714765840738,-150.41,0.00014,2]
[325371258,1714765840747,-150.41,0.00014,2]
[325371259,1714765840757,-150.41,0.00014,2]
[325371260,1714765840766,-150.41,0.00014,2]
[325371261,1714765840776,-150.41,0.00014,2]
[325371262,1714765840785,-150.41,0.00014,2]
[325371263,1714765840795,-150.41,0.00014,2]
[325371264,1714765840804,-150.41,0.00014,2]
[325371265,1714765840814,-150.41,0.00014,2]
[325371266,1714765840823,-150.41,0.00014,2]
[325371267,1714765840833,-150.41,0.00014,2]
[325371268,1714765840843,-150.41,0.00014,2]
[325371269,1714765840853,-150.41,0.00014,2]
[325371270,1714765840866,-150.41,0.00014,2]
[325371271,1714765840875,-150.41,0.00014,2]
[325371272,1714765840885,-150.41,0.00014,2]
[325371273,1714765840894,-150.41,0.00014,2]
[325371274,1714765840905,-150.41,0.00014,2]
[325371275,1714765840916,-150.41,0.00014,2]
[325371276,1714765840927,-150.41,0.00014,2]
[325371277,1714765840937,-150.41,0.00014,2]
[325371278,1714765840948,-150.41,0.00014,2]
[325371279,1714765840958,-150.41,0.00014,2]
[325371280,1714765840969,-150.41,0.00014,2]
[325371281,1714765840983,-150.41,0.00014,2]
[325371282,1714765840993,-150.41,0.00014,2]
[325371283,1714765841003,-150.41,0.00014,2]
[325371284,1714765841013,-150.41,0.00014,2]
[325371285,1714765841024,-150.41,0.00014,2]
[325371286,1714765841035,-150.41,0.00014,2]
[325371287,1714765841045,-150.41,0.00014,2]
[325371288,1714765841055,-150.41,0.00014,2]
[325371289,1714765841067,-150.41,0.00014,2]
[325371290,1714765841078,-150.41,0.00014,2]
[325371291,1714765841088,-150.41,0.00014,2]
[325371292,1714765841098,-150.41,0.00014,2]
[325371293,1714765841109,-150.41,0.00014,2]
[325371294,1714765841133,-150.41,0.00014,2]
[325371295,1714765841146,-150.41,0.00014,2]
[325371296,1714765841157,-150.41,0.00014,2]
[325371297,1714765841168,-150.41,0.00014,2]
[325371298,1714765841179,-150.41,0.00014,2]
[325371299,1714765841192,-150.41,0.00014,2]
[325371300,1714765841203,-150.41,0.00014,2]
[325371301,1714765841214,-150.41,0.00014,2]
[325371302,1714765841241,-150.41,0.00014,2]
[325371303,1714765841253,-150.41,0.00014,2]
[325371304,1714765841265,-150.41,0.00014,2]
[325371305,1714765841277,-150.41,0.00014,2]
[325371306,1714765841289,-150.41,0.00014,2]
[325371307,1714765841299,-150.41,0.00014,2]
[325371308,1714765841311,-150.41,0.00014,2]
[325371309,1714765841323,-150.41,0.00014,2]
[325371310,1714765841336,-150.41,0.00014,2]
[325371311,1714765841349,-150.41,0.00014,2]
[325371312,1714765841360,-150.41,0.00014,2]
[325371313,1714765841370,-150.41,0.00014,2]
[325371314,1714765841381,-150.41,0.00014,2]
[325371315,1714765841392,-150.41,0.00014,2]
[325371316,1714765841403,-150.41,0.00014,2]
[325371317,1714765841414,-150.41,0.00014,2]
[325371318,1714765841428,-150.41,0.00014,2]
[325371319,1714765841440,-150.41,0.00014,2]
[325371320,1714765841452,-150.41,0.00014,2]
[325371321,1714765841465,-150.41,0.00014,2]
[325371322,1714765841488,-150.41,0.00014,2]
[325371323,1714765841500,-150.41,0.00014,2]
[325371324,1714765841511,-150.41,0.00014,2]
[325371325,1714765841522,-150.41,0.00014,2]
[325371326,1714765841534,-150.41,0.00014,2]
[325371327,1714765841544,-150.41,0.00014,2]
[325371328,1714765841556,-150.41,0.00014,2]
[325371329,1714765841567,-150.41,0.00014,2]
[325371330,1714765841579,-150.41,0.00014,2]
[325371331,1714765841591,-150.41,0.00014,2]
[325371332,1714765841602,-150.41,0.00014,2]
[325371333,1714765841613,-150.41,0.00014,2]
[325371334,1714765841626,-150.41,0.00014,2]
[325371335,1714765841638,-150.41,0.00014,2]
[325371336,1714765841649,-150.41,0.00014,2]
[325371337,1714765841659,-150.41,0.00014,2]
[325371338,1714765841669,-150.41,0.00014,2]
[325371339,1714765841681,-150.41,0.00014,2]
[325371340,1714765841693,-150.41,0.00014,2]
[325371341,1714765841704,-150.41,0.00014,2]
[325371342,1714765841714,-150.41,0.00014,2]
[325371343,1714765841730,-210.0,0.00014187,2]
[325371344,1714765841743,-3000.0,0.0001431,2]
[325371345,1714765841753,-158.0,0.0001436,2]
[325371346,1714765841764,-275.22,0.00014389,2]
[325371347,1714765841775,-157.05,0.00014613,2]
[325371348,1714765841787,-157.05,0.0001465,2]
[325371349,1714765841797,-157.05,0.00014687,2]
[325371350,1714765841808,-2952.49,0.00014757,2]
[325371351,1714765841819,-442.833279,0.00014795,2]
[325371352,1714765841830,-160.0,0.000149,2]
[325371353,1714765841841,-1000.0,0.00014937,2]
[325371354,1714765841852,-385.6,0.00015,2]
[325371355,1714765841868,-1749.0834379,0.00015,2]
[325371356,1714765841878,-2639.0,0.00015,2]
[325371357,1714765841891,-257.12828319,0.00015,2]
[325371358,1714765841902,-155.97,0.00015007,2]
[325371359,1714765841912,-300.0,0.00015068,2]
[325371360,1714765841924,-602.7632567,0.00015504,2]
[325371361,1714765841935,-293.0,0.00015605,2]
[325371362,1714765841947,-442.833279,0.00015616,2]
[325371363,1714765841957,-167.0,0.00015831,2]
[325371364,1714765841966,-167.18,0.00015831,2]
[325371365,1714765841985,-167.0,0.00015831,2]
[325371366,1714765841997,-1150.0,0.00016,3]
[325371367,1714765842008,-4744.53,0.00016116,2]
[325371368,1714765842018,-275.22,0.00016187,2]
[325371369,1714765842029,-1000.0,0.0001643,2]
[325371370,1714765842040,-442.833279,0.00016438,2]
[325371371,1714765842052,-1037.38,0.00016438,2]
[325371372,1714765842064,-300.0,0.00016438,2]
[325371373,1714765842076,-167.0,0.00016484,2]
[325371374,1714765842088,-155.97,0.00016508,2]
[325371375,1714765842100,-167.18,0.00016702,2]
[325371376,1714765842111,-178.28774648,0.000169,2]
[325371377,1714765842123,-5278.27536011,0.00016997,2]
[325371378,1714765842134,-155.8005411,0.00016997,2]
[325371379,1714765842148,-4733.97408052,0.00016997,2]
[325371380,1714765842159,-3278.12915811,0.00016997,2]
[325371381,1714765842170,-324.18247948,0.00016997,2]
[325371382,1714765842180,-208.11144529,0.00016997,2]
[325371383,1714765842191,-155.0,0.00016997,2]
[325371384,1714765842200,-2324.00754524,0.00016997,2]
[325371385,1714765842210,-258.1710704,0.00016997,2]
[325371386,1714765842220,-265.77308436,0.00016997,2]
[325371387,1714765842235,-533.6451375,0.00016997,2]
[325371388,1714765842245,-555.17960085,0.00016997,2]
[325371389,1714765842255,-5211.4717042,0.00016997,2]
[325371390,1714765842265,-281.91054346,0.00016997,2]
[325371391,1714765842274,-22788.98881143,0.00016998,2]
[325371392,1714765842284,-8194.78008036,0.00016998,2]
[325371393,1714765842293,-35291.5975136,0.00016999,2]
[325371394,1714765842302,-167.0,0.00017137,2]
[325371395,1714765842312,-167.0,0.00017137,2]
[325371396,1714765842321,-340.0,0.00017166,2]
[325371397,1714765842330,-442.833279,0.0001726,2]
[325371398,1714765842340,-2952.49,0.00017497,2]
[325371400,1714765842349,-167.18,0.00017573,2]
[325371402,1714765842359,-167.0,0.00017791,2]
[325371403,1714765842368,-484.0,0.000178,2]
[325371404,1714765842378,-6534.36065849,0.0001788,2]
[325371405,1714765842387,-6534.36065841,0.0001788,2]
[325371406,1714765842396,-1000.0,0.00017924,2]
[325371407,1714765842405,-782.13638794,0.00017972,2]
[325371408,1714765842415,-3173.99094868,0.00017972,2]
[325371409,1714765842423,-275.22,0.00017986,2]
[325371410,1714765842433,-1200.0,0.00018,3]
[325371411,1714765842442,-155.97,0.00018009,2]
[325371413,1714765842452,-442.833279,0.00018082,2]
[325371415,1714765842461,-462.0,0.00018087,2]
[325371417,1714765842471,-1396.0,0.00018087,2]
[325371419,1714765842485,-971.0,0.00018087,2]
[325371421,1714765842495,-2299.0,0.00018087,2]
[325371423,1714765842504,-542.0,0.00018087,2]
[325371426,1714765842513,-1258.0,0.00018087,2]
[325371428,1714765842522,-1227.0,0.00018087,2]
[325371430,1714765842531,-209.0,0.00018087,2]
[325371432,1714765842541,-437.0,0.00018087,2]
[325371434,1714765842551,-808.0,0.00018087,2]
[325371436,1714765842560,-611.0,0.00018087,2]
[325371439,1714765842569,-1786.0,0.00018087,2]
[325371440,1714765842579,-1477.0,0.00018087,2]
[325371442,1714765842588,-2449.0,0.00018087,2]
[325371443,1714765842597,-150.0,0.00018087,2]
[325371444,1714765842607,-421.0,0.00018087,2]
[325371445,1714765842617,-150.0,0.00018087,2]
[325371446,1714765842626,-215.0,0.00018087,2]
[325371447,1714765842635,-1139.0,0.00018087,2]
[325371448,1714765842645,-1643.0,0.00018087,2]
[325371449,1714765842655,-444.0,0.00018087,2]
[325371450,1714765842664,-3150.0,0.00018087,2]
[325371451,1714765842673,-5739.0,0.00018087,2]
[325371452,1714765842683,-37757.0,0.00018087,2]
[325371453,1714765842693,-5901.0,0.00018087,2]
[325371454,1714765842702,-2292.0,0.00018087,2]
[325371455,1714765842711,-150.0,0.00018087,2]
[325371456,1714765842720,-150.182,0.00018087,2]
[325371457,1714765842732,-150.0,0.00018087,2]
[325371458,1714765842741,-602.7632567,0.00018108,2]
[325371459,1714765842750,-167.0,0.00018444,2]
[325371460,1714765842759,-167.18,0.00018444,2]
[325371461,1714765842769,-167.0,0.00018444,2]
[325371462,1714765842778,-6534.36065841,0.000186,2]
[325371463,1714765842788,-2263.184006,0.00019,2]
[325371464,1714765842798,-500.0,0.00019178,2]
[325371465,1714765842807,-500.0,0.00019178,2]
[325371466,1714765842816,-500.0,0.00019178,2]
[325371467,1714765842825,-500.0,0.00019178,2]
[325371468,1714765842834,-155.96442482,0.00019178,2]
[325371469,1714765842843,-500.0,0.00019178,2]
[325371470,1714765842853,-500.0,0.00019178,2]
[325371471,1714765842863,-520.74682167,0.00019178,2]
[325371472,1714765842872,-4000.0,0.00019178,2]
[325371473,1714765842885,-3873.95558732,0.000192,2]
[325371474,1714765842895,-658.7,0.000192,2]
[325371475,1714765842904,-662.71,0.000192,2]
[325371476,1714765842913,-771.91,0.000192,2]
[325371477,1714765842924,-1500.0,0.000195,2]
[325371478,1714765842934,-150.0,0.00019731,2]
[325371479,1714765842944,-150.0,0.00019733,2]
[325371480,1714765842953,-150.0,0.00019744,2]
[325371481,1714765842964,-150.0,0.00019751,2]
[325371482,1714765842975,-150.0,0.00019755,2]
[325371483,1714765842985,-150.0,0.00019756,2]
[325371484,1714765842994,-150.0,0.00019766,2]
[325371485,1714765843004,-150.0,0.00019779,2]
[325371486,1714765843013,-150.0,0.00019784,2]
[325371487,1714765843023,-275.22,0.00019785,2]
[325371488,1714765843032,-150.0,0.00019787,2]
[325371489,1714765843042,-150.0,0.00019789,2]
[325371490,1714765843051,-150.0,0.00019794,2]
[325371491,1714765843061,-155.0,0.000198,2]
[325371492,1714765843070,-150.0,0.00019817,2]
[325371493,1714765843080,-150.0,0.0001982,2]
[325371495,1714765843090,-500.0,0.0001983,2]
[325371496,1714765843099,-150.0,0.00019833,2]
[325371497,1714765843109,-500.0,0.00019838,2]
[325371498,1714765843118,-500.0,0.00019847,2]
[325371499,1714765843128,-150.0,0.00019856,2]
[325371500,1714765843137,-500.0,0.00019856,2]
[325371501,1714765843147,-500.0,0.00019865,2]
[325371502,1714765843156,-150.0,0.00019865,2]
[325371503,1714765843166,-150.0,0.00019866,2]
[325371504,1714765843175,-259.76351067,0.00019867,2]
[325371505,1714765843186,-500.0,0.00019874,2]
[325371506,1714765843195,-150.0,0.00019881,2]
[325371507,1714765843204,-150.0,0.00019882,2]
[325371508,1714765843214,-500.0,0.00019882,2]
[325371509,1714765843224,-500.0,0.00019891,2]
[325371510,1714765843234,-150.0,0.00019897,2]
[325371511,1714765843243,-500.0,0.000199,2]
[325371512,1714765843252,-154.49895811,0.000199,2]
[325371513,1714765843262,-150.0,0.00019913,2]
[325371514,1714765843271,-150.0,0.00019927,2]
[325371515,1714765843575,-150.0,0.00019953,2]
[325371516,1714765843586,-150.0,0.00019957,2]
[325371517,1714765843596,-150.0,0.0001997,2]
[325371518,1714765843606,-150.0,0.00019976,2]
[325371519,1714765843616,-150.0,0.00019982,2]
[325371520,1714765843625,-150.0,0.00019985,2]
[325371521,1714765843634,-150.0,0.00019986,2]
[325371522,1714765843644,-150.0,0.00019994,2]
[325371523,1714765843653,-6226.02936575,0.0002,2]
[325371524,1714765843663,-5174.91787188,0.0002,2]
[325371525,1714765843673,-1259.16438446,0.0002,2]
[325371526,1714765843682,-342.0,0.0002,2]
[325371527,1714765843691,-1036.89152846,0.0002,2]
[325371528,1714765843701,-175.93183996,0.0002,2]
[325371529,1714765843711,-1250.0,0.0002,3]
[325371530,1714765843721,-1500.0,0.0002,2]
[325371531,1714765843732,-626.45592037,0.0002,2]
[325371532,1714765843741,-860.33884772,0.0002,2]
[325371533,1714765843750,-358.19784561,0.0002,2]
[325371534,1714765843759,-1768.70416813,0.0002,2]
[325371535,1714765843769,-155.0,0.00020026,2]
[325371536,1714765843779,-155.0,0.00020026,2]
[325371537,1714765843788,-150.0,0.000205,2]
[325371538,1714765843798,-602.7632567,0.00020712,2]
[325371539,1714765843807,-150.0,0.00021,2]
[325371540,1714765843816,-462.0,0.00021087,2]
[325371541,1714765843825,-1396.0,0.00021087,2]
[325371542,1714765843835,-971.0,0.00021087,2]
[325371543,1714765843844,-2299.0,0.00021087,2]
[325371544,1714765843855,-542.0,0.00021087,2]
[325371545,1714765843871,-1258.0,0.00021087,2]
[325371546,1714765843880,-1227.0,0.00021087,2]
[325371547,1714765843890,-209.0,0.00021087,2]
[325371548,1714765843901,-437.0,0.00021087,2]
[325371549,1714765843911,-808.0,0.00021087,2]
[325371550,1714765843921,-611.0,0.00021087,2]
[325371551,1714765843931,-566.427,0.00021087,2]
[325371552,1714765843941,-1477.0,0.00021087,2]
[325371553,1714765843951,-2449.0,0.00021087,2]
[325371554,1714765843960,-421.0,0.00021087,2]
[325371555,1714765843970,-150.0,0.00021087,2]
[325371556,1714765843982,-215.0,0.00021087,2]
[325371557,1714765843991,-1139.0,0.00021087,2]
[325371558,1714765844001,-1643.0,0.00021087,2]
[325371559,1714765844011,-444.0,0.00021087,2]
[325371560,1714765844021,-3150.0,0.00021087,2]
[325371561,1714765844032,-5739.0,0.00021087,2]
[325371562,1714765844042,-37757.0,0.00021087,2]
[325371563,1714765844051,-5901.0,0.00021087,2]
[325371564,1714765844060,-2292.0,0.00021087,2]
[325371565,1714765844070,-150.0,0.00021087,2]
[325371566,1714765844079,-150.0,0.00021087,2]
[325371567,1714765844088,-771.91,0.000215,2]
[325371568,1714765844098,-6534.36065841,0.000215,2]
[325371569,1714765844107,-150.0,0.000215,3]
[325371570,1714765844117,-275.22,0.00021583,2]
[325371571,1714765844127,-151.89,0.00021644,2]
[325371572,1714765844137,-154.68,0.00021644,2]
[325371573,1714765844147,-165.22,0.00021644,2]
[325371574,1714765844157,-153.4,0.00021644,2]
[325371575,1714765844166,-225.09,0.00021644,2]
[325371576,1714765844176,-2000.0,0.00021918,3]
[325371577,1714765844185,-250.0,0.00021918,2]
[325371578,1714765844195,-150.0,0.00021918,2]
[325371579,1714765844204,-150.0,0.00021918,2]
[325371580,1714765844214,-150.0,0.00021918,2]
[325371581,1714765844225,-150.0,0.00021918,2]
[325371582,1714765844235,-658.7,0.00022,2]
[325371583,1714765844244,-662.71,0.00022,2]
[325371584,1714765844254,-1300.0,0.00022,3]
[325371585,1714765844263,-150.0,0.00022,3]
[325371586,1714765844273,-341.7495978,0.00022014,2]
[325371587,1714765844282,-349.29544885,0.00022268,2]
[325371588,1714765844292,-155.00408411,0.00022381,2]
[325371589,1714765844302,-154.66274233,0.00022428,2]
[325371590,1714765844311,-150.0,0.000225,3]
[325371591,1714765844321,-154.66274233,0.00022503,2]
[325371592,1714765844331,-157.57856048,0.00022543,2]
[325371593,1714765844341,-150.17355855,0.00022563,2]
[325371594,1714765844350,-156.78408836,0.00022872,2]
[325371595,1714765844361,-163.80524507,0.00022986,2]
[325371596,1714765844370,-150.0,0.00023,3]
[325371597,1714765844380,-150.17355855,0.00023034,2]
[325371598,1714765844390,-341.7495978,0.00023045,2]
[325371599,1714765844399,-150.17355855,0.00023073,2]
[325371600,1714765844409,-602.7632567,0.00023316,2]
[325371601,1714765844421,-152.67353958,0.00023322,2]
[325371602,1714765844431,-150.93915784,0.00023426,2]
[325371603,1714765844440,-150.0,0.000235,3]
[325371604,1714765844449,-150.0,0.00023599,10]
[325371605,1714765844459,-150.0,0.00023599,10]
[325371606,1714765844469,-88948.25025071,0.000236,2]
[325371607,1714765844481,-341.7495978,0.00023878,2]
[325371608,1714765844490,-341.7495978,0.00023959,2]
[325371609,1714765844500,-500.0,0.00024,2]
[325371610,1714765844509,-500.0,0.00024,2]
[325371611,1714765844519,-500.0,0.00024,2]
[325371612,1714765844529,-500.0,0.00024,2]
[325371613,1714765844538,-500.0,0.00024,2]
[325371614,1714765844547,-500.0,0.00024,2]
[325371615,1714765844557,-500.0,0.00024,2]
[325371616,1714765844567,-500.0,0.00024,2]
[325371617,1714765844577,-500.0,0.00024,2]
[325371618,1714765844586,-500.0,0.00024,2]
[325371619,1714765844596,-500.0,0.00024,2]
[325371620,1714765844605,-500.0,0.00024,2]
[325371621,1714765844626,-500.0,0.00024,2]
[325371622,1714765844635,-500.0,0.00024,2]
[325371623,1714765844644,-500.0,0.00024,2]
[325371624,1714765844654,-500.0,0.00024,2]
[325371625,1714765844663,-500.0,0.00024,2]
[325371626,1714765844672,-500.0,0.00024,2]
[325371627,1714765844682,-500.0,0.00024,2]
[325371628,1714765844691,-500.0,0.00024,2]
[325371629,1714765844701,-500.0,0.00024,2]
[325371630,1714765844710,-500.0,0.00024,2]
[325371631,1714765844719,-500.0,0.00024,2]
[325371632,1714765844730,-500.0,0.00024,2]
[325371633,1714765844739,-500.0,0.00024,2]
[325371634,1714765844749,-500.0,0.00024,2]
[325371635,1714765844758,-500.0,0.00024,2]
[325371636,1714765844768,-500.0,0.00024,2]
[325371637,1714765844778,-500.0,0.00024,2]
[325371638,1714765844787,-500.0,0.00024,2]
[325371639,1714765844796,-500.0,0.00024,2]
[325371640,1714765844806,-500.0,0.00024,2]
[325371641,1714765844815,-297.2,0.00024,2]
[325371642,1714765844824,-1350.0,0.00024,3]
[325371643,1714765844833,-150.0,0.00024,4]
[325371644,1714765844844,-239.52005028,0.0002408,2]
[325371645,1714765844853,-462.0,0.00024087,2]
[325371646,1714765844863,-1396.0,0.00024087,2]
[325371647,1714765844872,-968.0,0.00024087,2]
[325371648,1714765844885,-2299.0,0.00024087,2]
[325371649,1714765844894,-1258.0,0.00024087,2]
[325371650,1714765844903,-1227.0,0.00024087,2]
[325371651,1714765844912,-200.111,0.00024087,2]
[325371652,1714765844923,-437.0,0.00024087,2]
[325371653,1714765844933,-639.878,0.00024087,2]
[325371654,1714765844942,-608.0,0.00024087,2]
[325371655,1714765844952,-1474.0,0.00024087,2]
[325371656,1714765844962,-2449.0,0.00024087,2]
[325371657,1714765844971,-421.0,0.00024087,2]
[325371658,1714765844981,-150.0,0.00024087,2]
[325371659,1714765844990,-215.0,0.00024087,2]
[325371660,1714765845000,-1139.0,0.00024087,2]
[325371661,1714765845009,-1643.0,0.00024087,2]
[325371662,1714765845019,-444.0,0.00024087,2]
[325371663,1714765845028,-3150.0,0.00024087,2]
[325371664,1714765845037,-5739.0,0.00024087,2]
[325371665,1714765845046,-37757.0,0.00024087,2]
[325371666,1714765845056,-5901.0,0.00024087,2]
[325371667,1714765845066,-2292.0,0.00024087,2]
[325371668,1714765845076,-771.91,0.000241,2]
[325371669,1714765845085,-866.88,0.00024195,2]
[325371670,1714765845094,-662.71,0.000242,2]
[325371671,1714765845104,-150.0,0.0002437,2]
[325371672,1714765845114,-150.0,0.0002437,2]
[325371673,1714765845123,-6534.36065841,0.000244,2]
[325371674,1714765845134,-150.0,0.000245,4]
[325371675,1714765845143,-349.29544885,0.00024516,2]
[325371676,1714765845153,-492.51,0.00024658,2]
[325371677,1714765845163,-357.73,0.00024658,2]
[325371678,1714765845172,-152.77609116,0.00024663,2]
[325371679,1714765845183,-658.7,0.000247,2]
[325371680,1714765845193,-152.12902794,0.00024737,2]
[325371681,1714765845202,-157.57856048,0.0002484,2]
[325371682,1714765845212,-157.57856048,0.00024866,2]
[325371683,1714765845225,-154.71099277,0.00024909,2]
[325371684,1714765845235,-157.93592244,0.00024926,2]
[325371685,1714765845245,-155.0,0.00025,2]
[325371686,1714765845255,-198.95368324,0.00025,2]
[325371687,1714765845264,-5000.0,0.00025,2]
[325371688,1714765845274,-4221.59588355,0.00025,2]
[325371689,1714765845283,-150.0,0.00025,2]
[325371690,1714765845293,-150.0,0.00025,4]
[325371691,1714765845303,-325.34964172,0.00025178,2]
[325371692,1714765845313,-155.0,0.00025178,2]
[325371693,1714765845322,-302.2237736,0.00025178,2]
[325371694,1714765845331,-250.5802228,0.00025178,2]
[325371695,1714765845340,-160.99953107,0.00025178,2]
[325371696,1714765845350,-150.17355855,0.00025179,2]
[325371697,1714765845360,-154.66274233,0.0002528,2]
[325371698,1714765845369,-341.7495978,0.00025282,2]
[325371699,1714765845379,-349.29544885,0.0002541,2]
[325371700,1714765845388,-349.29544885,0.00025443,2]
[325371701,1714765845398,-152.66984544,0.0002549,2]
[325371703,1714765845408,-155.70643541,0.00025552,2]
[325371704,1714765845418,-166.66666667,0.00025595,2]
[325371705,1714765845427,-168.02355184,0.00025717,2]
[325371706,1714765845436,-150.0,0.00025806,10]
[325371707,1714765845446,-686841.10385834,0.00025807,2]
[325371708,1714765845456,-602.7632567,0.0002592,2]
[325371709,1714765845465,-154.59533332,0.00025937,2]
[325371710,1714765845475,-150.0,0.00025939,3]
[325371711,1714765845485,-341.7495978,0.00025945,2]